fUST/lending_fUST_20250707
["ID","MTS","AMOUNT","RATE_DAILY","PERIOD"]
[370094984,1751878316947,-474.81,0.00020805,2]
[370094985,1751878316957,-590.63,0.00020805,2]
[370094986,1751878316967,-517.21,0.00020805,2]
[370094987,1751878316976,-460.0,0.00020805,2]
[370094988,1751878316987,-600.59,0.00020805,2]
[370094989,1751878316996,-460.14,0.00020805,2]
[370094990,1751878317007,-460.0,0.00020805,2]
[370094991,1751878317016,-460.0,0.00020805,2]
[370094992,1751878317026,-460.0,0.00020805,2]
[370094993,1751878317036,-503.25,0.00020805,2]
[370094994,1751878317046,-1790.38,0.00020805,2]
[370094995,1751878317055,-460.0,0.00020805,2]
[370094996,1751878317065,-1020.84,0.00020805,2]
[370094997,1751878317075,-628.75,0.00020805,2]
[370094998,1751878317084,-724.26,0.00020805,2]
[370094999,1751878317094,-599.29,0.00020805,2]
[370095000,1751878317103,-618.64,0.00020805,2]
[370095001,1751878317113,-460.0,0.00020805,2]
[370095002,1751878317123,-736.7,0.00020805,2]
[370095003,1751878317132,-513.26,0.00020805,2]
[370095004,1751878317141,-2101.7,0.00020805,2]
[370095005,1751878317151,-701.27,0.00020805,2]
[370095006,1751878317160,-501.61,0.00020805,2]
[370095007,1751878317169,-621.18,0.00020805,2]
[370095008,1751878317179,-460.0,0.00020805,2]
[370095009,1751878317188,-460.0,0.00020805,2]
[370095010,1751878317198,-460.0,0.00020805,2]
[370095011,1751878317208,-1588.08,0.00020805,2]
[370095012,1751878317217,-460.0,0.00020805,2]
[370095013,1751878317226,-1502.2,0.00020805,2]
[370095014,1751878317235,-603.3,0.00020805,2]
[370095015,1751878317245,-645.22,0.00020805,2]
[370095016,1751878317254,-460.0,0.00020805,2]
[370095017,1751878317263,-460.0,0.00020805,2]
[370095018,1751878317273,-460.0,0.00020805,2]
[370095019,1751878317283,-802.16,0.00020805,2]
[370095020,1751878317293,-460.0,0.00020805,2]
[370095021,1751878317303,-582.95,0.00020805,2]
[370095022,1751878317313,-460.0,0.00020805,2]
[370095023,1751878317323,-518.66,0.00020805,2]
[370095024,1751878317332,-461.06,0.00020805,2]
[370095025,1751878317342,-882.2,0.00020805,2]
[370095026,1751878317353,-460.0,0.00020805,2]
[370095027,1751878317363,-460.0,0.00020805,2]
[370095028,1751878317372,-466.33,0.00020805,2]
[370095029,1751878317382,-811.29,0.00020805,2]
[370095030,1751878317392,-575.59,0.00020807,2]
[370095031,1751878317401,-460.0,0.00020807,2]
[370095032,1751878317412,-200.0,0.00020809,2]
[370095033,1751878317422,-211.563781,0.0002081,2]
[370095034,1751878317433,-211.563781,0.0002081,2]
[370095035,1751878317442,-151.0,0.0002081,2]
[370095036,1751878317453,-151.0,0.0002081,2]
[370095037,1751878317463,-216.189683,0.0002081,2]
[370095038,1751878317473,-151.0,0.0002081,2]
[370095039,1751878317482,-151.0,0.0002081,2]
[370095040,1751878317491,-3702.021644,0.0002081,2]
[370095041,1751878317501,-3702.021644,0.0002081,2]
[370095042,1751878317512,-460.0,0.0002081,2]
[370095043,1751878317522,-560.56218945,0.0002081,2]
[370095044,1751878317532,-460.0,0.0002081,2]
[370095045,1751878317542,-579.14,0.0002081,2]
[370095046,1751878317561,-460.0,0.0002081,2]
[370095047,1751878317579,-1820.82,0.0002081,2]
[370095048,1751878317596,-460.0,0.0002081,2]
[370095049,1751878317615,-460.0,0.0002081,2]
[370095050,1751878317634,-697.17,0.0002081,2]
[370095051,1751878317650,-460.0,0.0002081,2]
[370095052,1751878317670,-584.48,0.0002081,2]
[370095053,1751878317684,-686.19,0.0002081,2]
[370095054,1751878317700,-460.0,0.0002081,2]
[370095055,1751878317720,-460.0,0.0002081,2]
[370095056,1751878317740,-891.26,0.0002081,2]
[370095057,1751878317755,-597.07,0.0002081,2]
[370095058,1751878317774,-460.0,0.0002081,2]
[370095059,1751878317791,-511.02,0.0002081,2]
[370095060,1751878317825,-461.69,0.0002081,2]
[370095061,1751878317845,-460.0,0.0002081,2]
[370095062,1751878317862,-460.0,0.0002081,2]
[370095063,1751878317882,-2000.0,0.00020816,2]
[370095064,1751878317901,-2000.0,0.00020816,2]
[370095065,1751878317917,-2000.0,0.00020816,2]
[370095066,1751878317935,-25000.0,0.00020835,2]
[370095067,1751878317952,-5000.0,0.00020835,2]
[370095068,1751878317967,-3500.0,0.0002086,2]
[370095069,1751878317984,-178.54144095,0.00020901,2]
[370095070,1751878317999,-814.793,0.00020901,2]
[370095071,1751878318015,-151.0,0.00020906,2]
[370095072,1751878318031,-151.0,0.00020906,2]
[370095073,1751878318046,-234.572647,0.00020906,2]
[370095074,1751878318062,-234.572647,0.00020906,2]
[370095075,1751878318078,-185.862515,0.00020906,2]
[370095076,1751878318093,-185.862515,0.00020906,2]
[370095077,1751878318109,-535.243736,0.00020906,2]
[370095078,1751878318124,-535.243736,0.00020906,2]
[370095079,1751878318140,-5000.0,0.00020906,2]
[370095080,1751878318156,-7880.90807545,0.0002091,2]
[370095081,1751878318170,-228.011384,0.00020911,2]
[370095082,1751878318185,-192.76463,0.00020911,2]
[370095083,1751878318202,-151.0,0.00020911,2]
[370095084,1751878318217,-151.0,0.00020911,2]
[370095085,1751878318232,-251.765691,0.00020911,2]
[370095086,1751878318248,-251.765691,0.00020911,2]
[370095087,1751878318263,-1152.046431,0.00020911,2]
[370095088,1751878318279,-1152.046431,0.00020911,2]
[370095089,1751878318294,-151.0,0.00020911,2]
[370095090,1751878318309,-320.333785,0.00020911,2]
[370095091,1751878318325,-320.333785,0.00020911,2]
[370095092,1751878318340,-1680.07552712,0.00020934,4]
[370095093,1751878318357,-634.64,0.0002097,2]
[370095094,1751878318373,-578.27,0.0002097,2]
[370095095,1751878318389,-714.52,0.0002097,2]
[370095096,1751878318405,-3372.58,0.0002097,2]
[370095097,1751878318422,-557.47,0.0002097,2]
[370095098,1751878318438,-476.15,0.0002097,2]
[370095099,1751878318454,-460.0,0.00020974,2]
[370095100,1751878318469,-460.0,0.00020974,2]
[370095101,1751878318485,-5018.54,0.00020974,2]
[370095102,1751878318501,-473.43,0.00020974,2]
[370095103,1751878318517,-978.43,0.00020974,2]
[370095104,1751878318533,-877.49,0.00020974,2]
[370095105,1751878318549,-460.0,0.00020974,2]
[370095106,1751878318565,-460.0,0.00020974,2]
[370095107,1751878318580,-4865.84,0.00020974,2]
[370095108,1751878318597,-8429.87,0.00020974,2]
[370095109,1751878318612,-1078.12,0.00020974,2]
[370095110,1751878318627,-460.0,0.00020974,2]
[370095111,1751878318643,-814.88,0.00020974,2]
[370095112,1751878318657,-1523.08,0.00020974,2]
[370095113,1751878318673,-460.0,0.00020974,2]
[370095114,1751878318690,-758.47,0.00020975,2]
[370095115,1751878318704,-460.0,0.00020975,2]
[370095116,1751878318720,-460.0,0.00020975,2]
[370095117,1751878318735,-648.63,0.00020975,2]
[370095118,1751878318749,-4741.33,0.00020975,2]
[370095119,1751878318765,-815.67,0.00020975,2]
[370095120,1751878318780,-4342.85,0.00020975,2]
[370095121,1751878318795,-460.0,0.00020975,2]
[370095122,1751878318811,-1322.28,0.00020975,2]
[370095123,1751878318827,-460.0,0.00020976,2]
[370095124,1751878318842,-460.0,0.00020976,2]
[370095125,1751878318858,-978.47,0.00020976,2]
[370095126,1751878318873,-1929.95,0.00020976,2]
[370095127,1751878318889,-479.04,0.00020976,2]
[370095128,1751878318905,-460.0,0.00020976,2]
[370095129,1751878318920,-593.09,0.00020976,2]
[370095130,1751878318934,-281.08868082,0.00020976,2]
[370095131,1751878318950,-961.6,0.00020976,2]
[370095132,1751878318965,-1232.5,0.00020976,2]
[370095133,1751878318980,-2371.65,0.00020976,2]
[370095134,1751878318995,-1116.74,0.00020976,2]
[370095135,1751878319012,-4190.5,0.00020976,2]
[370095136,1751878319028,-460.0,0.00020976,2]
[370095137,1751878319043,-460.0,0.00020978,2]
[370095138,1751878319058,-504.54,0.00020978,2]
[370095139,1751878319073,-460.0,0.00020978,2]
[370095140,1751878319088,-460.0,0.00020978,2]
[370095141,1751878319103,-454.19904507,0.00020978,2]
[370095142,1751878319119,-813.31,0.00020978,2]
[370095143,1751878319134,-460.0,0.00020978,2]
[370095144,1751878319149,-696.66,0.00020978,2]
[370095145,1751878319165,-460.0,0.00020978,2]
[370095146,1751878319180,-460.0,0.00020978,2]
[370095147,1751878319195,-460.0,0.00020978,2]
[370095148,1751878319210,-460.0,0.00020978,2]
[370095149,1751878319225,-427.82158905,0.00020978,2]
[370095150,1751878319242,-642.4,0.00020978,2]
[370095151,1751878319258,-989.64,0.00020978,2]
[370095152,1751878319504,-591.78,0.00020978,2]
[370095153,1751878319516,-460.0,0.00020978,2]
[370095154,1751878319526,-549.97,0.00020978,2]
[370095155,1751878319538,-460.0,0.00020978,2]
[370095156,1751878319549,-668.91,0.00020978,2]
[370095157,1751878319559,-1175.75,0.00020978,2]
[370095158,1751878319570,-460.0,0.00020978,2]
[370095159,1751878319580,-575.32,0.00020978,2]
[370095160,1751878319590,-501.04,0.00020978,2]
[370095161,1751878319600,-460.0,0.00020978,2]
[370095162,1751878319609,-460.0,0.00020978,2]
[370095163,1751878319619,-460.0,0.00020978,2]
[370095164,1751878319629,-460.0,0.00020978,2]
[370095165,1751878319638,-460.0,0.00020978,2]
[370095166,1751878319648,-1816.74,0.00020978,2]
[370095167,1751878319658,-460.0,0.00020978,2]
[370095168,1751878319667,-627.71,0.00020978,2]
[370095169,1751878319677,-1190.73,0.00020978,2]
[370095170,1751878319687,-460.0,0.00020978,2]
[370095171,1751878319696,-1436.76,0.00020978,2]
[370095172,1751878319705,-460.0,0.00020978,2]
[370095173,1751878319715,-744.3,0.00020978,2]
[370095174,1751878319725,-460.0,0.00020979,2]
[370095175,1751878319735,-1626.87,0.00020979,2]
[370095176,1751878319744,-1041.83,0.00020979,2]
[370095177,1751878319754,-460.0,0.00020979,2]
[370095178,1751878319763,-1219.94,0.00020979,2]
[370095179,1751878319773,-11783.72,0.00020979,2]
[370095180,1751878319782,-516.28,0.00020979,2]
[370095181,1751878319791,-1126.4,0.00020979,2]
[370095182,1751878319800,-3083.89,0.00020979,2]
[370095183,1751878319824,-746.91,0.00020979,2]
[370095184,1751878319836,-460.0,0.00020979,2]
[370095185,1751878319845,-1051.67,0.00020979,2]
[370095186,1751878319855,-3603.21229255,0.0002098,2]
[370095187,1751878319864,-151.0,0.0002098,2]
[370095188,1751878319875,-272.50166,0.0002098,2]
[370095189,1751878319884,-272.50166,0.0002098,2]
[370095190,1751878319893,-4019.73249195,0.00021,2]
[370095191,1751878319903,-269.5672343,0.00021,2]
[370095192,1751878319913,-677.60956811,0.00021,10]
[370095193,1751878319922,-12363.83127234,0.00021,2]
[370095194,1751878319931,-201.63851388,0.00021,2]
[370095195,1751878319940,-2000.0,0.00021016,2]
[370095196,1751878319950,-2000.0,0.00021016,2]
[370095197,1751878319960,-1001.0754988,0.00021016,2]
[370095198,1751878319969,-2400.0,0.00021016,2]
[370095199,1751878319979,-612.05229468,0.00021016,2]
[370095200,1751878319988,-1002.77178113,0.00021016,2]
[370095201,1751878319997,-2000.0,0.00021016,2]
[370095202,1751878320008,-2000.0,0.00021016,2]
[370095203,1751878320018,-1193.27012017,0.00021016,2]
[370095204,1751878320027,-2000.0,0.00021016,2]
[370095205,1751878320037,-2000.0,0.00021016,2]
[370095206,1751878320047,-2000.0,0.00021016,2]
[370095207,1751878320057,-467.28,0.00021078,2]
[370095208,1751878320066,-773.469148,0.00021078,2]
[370095209,1751878320076,-773.469148,0.00021078,2]
[370095210,1751878320085,-670.12472,0.00021078,2]
[370095211,1751878320095,-670.12472,0.00021078,2]
[370095212,1751878320106,-1466.61,0.00021078,2]
[370095213,1751878320116,-1693.65,0.00021078,2]
[370095214,1751878320126,-511.73,0.00021078,2]
[370095215,1751878320135,-5131.36,0.00021078,2]
[370095216,1751878320146,-927.78,0.00021078,2]
[370095217,1751878320155,-2375.1,0.00021078,2]
[370095218,1751878320166,-4148.36,0.00021078,2]
[370095219,1751878320178,-460.0,0.00021078,2]
[370095220,1751878320189,-1006.41,0.00021078,2]
[370095221,1751878320199,-9521.95,0.00021078,2]
[370095222,1751878320210,-2677.89,0.00021078,2]
[370095223,1751878320219,-927.92,0.00021078,2]
[370095224,1751878320228,-460.0,0.00021079,2]
[370095225,1751878320237,-460.0,0.00021079,2]
[370095226,1751878320247,-652.73,0.00021079,2]
[370095227,1751878320256,-460.0,0.00021079,2]
[370095228,1751878320266,-460.0,0.00021079,2]
[370095229,1751878320275,-460.0,0.00021079,2]
[370095230,1751878320286,-352.8,0.00021079,2]
[370095231,1751878320296,-590.05,0.00021079,2]
[370095232,1751878320305,-642.41,0.00021079,2]
[370095233,1751878320315,-460.0,0.00021079,2]
[370095234,1751878320325,-1814.25,0.00021079,2]
[370095235,1751878320334,-780.98,0.00021079,2]
[370095236,1751878320344,-460.0,0.00021079,2]
[370095237,1751878320353,-739.46,0.00021079,2]
[370095238,1751878320362,-1473.58,0.00021079,2]
[370095239,1751878320372,-460.0,0.00021079,2]
[370095240,1751878320383,-568.37560958,0.00021079,2]
[370095241,1751878320392,-537.97,0.00021079,2]
[370095242,1751878320402,-549.339809,0.00021079,2]
[370095243,1751878320411,-549.339809,0.00021079,2]
[370095244,1751878320421,-474.52,0.00021079,2]
[370095245,1751878320431,-460.0,0.00021079,2]
[370095246,1751878320440,-460.0,0.00021079,2]
[370095247,1751878320450,-460.0,0.00021079,2]
[370095248,1751878320460,-515.18,0.00021079,2]
[370095249,1751878320470,-463.45,0.00021079,2]
[370095250,1751878320480,-569.19,0.00021079,2]
[370095251,1751878320490,-460.0,0.00021079,2]
[370095252,1751878320500,-474.81,0.00021079,2]
[370095253,1751878320509,-590.63,0.00021079,2]
[370095254,1751878320519,-517.21,0.00021079,2]
[370095255,1751878320529,-440.5592679,0.00021079,2]
[370095256,1751878320539,-600.59,0.00021079,2]
[370095257,1751878320549,-460.14,0.00021079,2]
[370095258,1751878320559,-460.0,0.00021079,2]
[370095259,1751878320568,-460.0,0.00021079,2]
[370095260,1751878320577,-460.0,0.00021079,2]
[370095261,1751878320587,-503.25,0.00021079,2]
[370095262,1751878320597,-1790.38,0.00021079,2]
[370095263,1751878320606,-460.0,0.00021079,2]
[370095264,1751878320616,-1020.84,0.00021079,2]
[370095265,1751878320625,-628.75,0.00021079,2]
[370095266,1751878320635,-724.26,0.00021079,2]
[370095267,1751878320644,-160.955765,0.00021079,2]
[370095268,1751878320654,-160.955765,0.00021079,2]
[370095269,1751878320663,-599.29,0.00021079,2]
[370095270,1751878320673,-618.64,0.00021079,2]
[370095271,1751878320682,-263.28257756,0.00021079,2]
[370095272,1751878320692,-736.7,0.00021079,2]
[370095273,1751878320702,-513.26,0.00021079,2]
[370095274,1751878320712,-2101.7,0.00021079,2]
[370095275,1751878320722,-701.27,0.00021079,2]
[370095276,1751878320731,-501.61,0.00021079,2]
[370095277,1751878320741,-621.18,0.00021079,2]
[370095278,1751878320751,-460.0,0.00021079,2]
[370095279,1751878320760,-460.0,0.00021079,2]
[370095280,1751878320770,-460.0,0.00021079,2]
[370095281,1751878320779,-1240.905189,0.00021079,2]
[370095282,1751878320789,-1588.08,0.00021079,2]
[370095283,1751878320801,-1240.905189,0.00021079,2]
[370095284,1751878320811,-460.0,0.00021079,2]
[370095285,1751878320821,-1502.2,0.00021079,2]
[370095286,1751878320834,-603.3,0.00021079,2]
[370095287,1751878320844,-645.22,0.00021079,2]
[370095288,1751878320853,-460.0,0.00021079,2]
[370095289,1751878320863,-460.0,0.00021079,2]
[370095290,1751878320873,-460.0,0.00021079,2]
[370095291,1751878320882,-802.16,0.00021079,2]
[370095292,1751878320891,-460.0,0.00021079,2]
[370095293,1751878320901,-582.95,0.00021079,2]
[370095294,1751878320910,-460.0,0.00021079,2]
[370095295,1751878320919,-461.06,0.00021079,2]
[370095296,1751878320929,-518.66,0.00021079,2]
[370095297,1751878320939,-882.2,0.00021079,2]
[370095298,1751878320949,-460.0,0.00021079,2]
[370095299,1751878320959,-460.0,0.00021079,2]
[370095300,1751878320969,-466.33,0.00021079,2]
[370095301,1751878320979,-811.29,0.00021079,2]
[370095302,1751878320988,-575.59,0.00021081,2]
[370095303,1751878320997,-460.0,0.00021081,2]
[370095304,1751878321008,-151.0,0.00021082,2]
[370095305,1751878321017,-166.455343,0.00021082,2]
[370095306,1751878321027,-166.455343,0.00021082,2]
[370095307,1751878321036,-200.0,0.00021083,2]
[370095308,1751878321045,-151.0,0.00021084,2]
[370095309,1751878321053,-460.0,0.00021084,2]
[370095310,1751878321063,-460.0,0.00021084,2]
[370095311,1751878321072,-579.14,0.00021084,2]
[370095312,1751878321081,-460.0,0.00021084,2]
[370095313,1751878321091,-1820.82,0.00021084,2]
[370095314,1751878321100,-460.0,0.00021084,2]
[370095315,1751878321110,-460.0,0.00021084,2]
[370095316,1751878321119,-697.17,0.00021084,2]
[370095317,1751878321128,-460.0,0.00021084,2]
[370095318,1751878321137,-584.48,0.00021084,2]
[370095319,1751878321146,-686.19,0.00021084,2]
[370095320,1751878321156,-460.0,0.00021084,2]
[370095321,1751878321165,-303.55,0.00021084,2]
[370095322,1751878321174,-891.26,0.00021084,2]
[370095323,1751878321184,-597.07,0.00021084,2]
[370095324,1751878321193,-460.0,0.00021084,2]
[370095325,1751878321203,-511.02,0.00021084,2]
[370095326,1751878321212,-461.69,0.00021084,2]
[370095327,1751878321221,-460.0,0.00021084,2]
[370095328,1751878321231,-589.6839843,0.00021084,2]
[370095329,1751878321241,-287.85286679,0.00021095,15]
[370095330,1751878321250,-746.81990015,0.00021136,2]
[370095331,1751878321260,-2500.0,0.00021136,2]
[370095332,1751878321269,-151.0,0.00021184,2]
[370095333,1751878321278,-151.0,0.00021185,2]
[370095334,1751878321288,-151.0,0.00021185,2]
[370095335,1751878321297,-151.0,0.00021185,2]
[370095336,1751878321307,-151.0,0.00021185,2]
[370095337,1751878321317,-151.0,0.00021185,2]
[370095338,1751878321327,-151.0,0.00021185,2]
[370095339,1751878321336,-151.0,0.00021185,2]
[370095340,1751878321346,-161.842147,0.00021185,2]
[370095341,1751878321356,-273.721132,0.00021185,2]
[370095342,1751878321366,-273.721132,0.00021185,2]
[370095343,1751878321376,-158.55,0.00021185,2]
[370095344,1751878321385,-158.55,0.00021185,2]
[370095345,1751878321395,-178.623899,0.00021186,2]
[370095346,1751878321405,-178.623899,0.00021186,2]
[370095347,1751878321414,-151.0,0.00021186,2]
[370095348,1751878321424,-634.64,0.00021244,2]
[370095349,1751878321433,-578.27,0.00021244,2]
[370095350,1751878321443,-714.52,0.00021244,2]
[370095351,1751878321454,-3372.58,0.00021244,2]
[370095352,1751878321464,-557.47,0.00021244,2]
[370095353,1751878321474,-476.15,0.00021244,2]
[370095354,1751878321483,-1680.07552712,0.00021245,4]
[370095355,1751878321493,-271.82805471,0.00021248,2]
[370095356,1751878321503,-604.19493534,0.00021248,2]
[370095357,1751878321513,-460.0,0.00021248,2]
[370095358,1751878321523,-5018.54,0.00021248,2]
[370095359,1751878321533,-473.43,0.00021248,2]
[370095360,1751878321543,-978.43,0.00021248,2]
[370095361,1751878321553,-877.49,0.00021248,2]
[370095362,1751878321562,-460.0,0.00021248,2]
[370095363,1751878321572,-460.0,0.00021248,2]
[370095364,1751878321582,-4865.84,0.00021248,2]
[370095365,1751878321594,-8429.87,0.00021248,2]
[370095366,1751878321603,-1078.12,0.00021248,2]
[370095367,1751878321612,-460.0,0.00021248,2]
[370095368,1751878321621,-814.88,0.00021248,2]
[370095369,1751878321631,-1523.08,0.00021248,2]
[370095370,1751878321641,-460.0,0.00021248,2]
[370095371,1751878321651,-758.47,0.00021249,2]
[370095372,1751878321661,-460.0,0.00021249,2]
[370095373,1751878321670,-460.0,0.00021249,2]
[370095374,1751878321680,-648.63,0.00021249,2]
[370095375,1751878321690,-4741.33,0.00021249,2]
[370095376,1751878321700,-815.67,0.00021249,2]
[370095377,1751878321711,-4342.85,0.00021249,2]
[370095378,1751878321721,-505.39430277,0.00021249,2]
[370095379,1751878321731,-1322.28,0.00021249,2]
[370095380,1751878321740,-460.0,0.0002125,2]
[370095381,1751878321749,-490.95477841,0.0002125,2]
[370095382,1751878321759,-978.47,0.0002125,2]
[370095383,1751878321768,-1929.95,0.0002125,2]
[370095384,1751878321778,-479.04,0.0002125,2]
[370095385,1751878321788,-460.0,0.0002125,2]
[370095386,1751878321798,-961.6,0.0002125,2]
[370095387,1751878321808,-1232.5,0.0002125,2]
[370095388,1751878321817,-2371.65,0.0002125,2]
[370095389,1751878321831,-1116.74,0.0002125,2]
[370095390,1751878321841,-4190.5,0.0002125,2]
[370095391,1751878321851,-460.0,0.0002125,2]
[370095392,1751878321860,-460.0,0.00021252,2]
[370095393,1751878321871,-504.54,0.00021252,2]
[370095394,1751878321882,-460.0,0.00021252,2]
[370095395,1751878321893,-460.0,0.00021252,2]
[370095396,1751878321906,-813.31,0.00021252,2]
[370095397,1751878321916,-460.0,0.00021252,2]
[370095398,1751878321926,-696.66,0.00021252,2]
[370095399,1751878321936,-482.43,0.00021252,2]
[370095400,1751878321945,-504.21964263,0.00021252,2]
[370095401,1751878321956,-460.0,0.00021252,2]
[370095402,1751878321966,-460.0,0.00021252,2]
[370095403,1751878321976,-642.4,0.00021252,2]
[370095404,1751878321989,-989.64,0.00021252,2]
[370095405,1751878322001,-591.78,0.00021252,2]
[370095406,1751878322011,-460.0,0.00021252,2]
[370095407,1751878322021,-549.97,0.00021252,2]
[370095408,1751878322031,-460.0,0.00021252,2]
[370095409,1751878322040,-668.91,0.00021252,2]
[370095410,1751878322050,-1175.75,0.00021252,2]
[370095411,1751878322059,-460.0,0.00021252,2]
[370095412,1751878322069,-575.32,0.00021252,2]
[370095413,1751878322079,-501.04,0.00021252,2]
[370095414,1751878322088,-460.0,0.00021252,2]
[370095415,1751878322098,-460.0,0.00021252,2]
[370095416,1751878322108,-352.26249679,0.00021252,2]
[370095417,1751878322117,-460.0,0.00021252,2]
[370095418,1751878322127,-460.0,0.00021252,2]
[370095419,1751878322136,-1816.74,0.00021252,2]
[370095420,1751878322144,-460.0,0.00021252,2]
[370095421,1751878322152,-627.71,0.00021252,2]
[370095422,1751878322161,-1190.73,0.00021252,2]
[370095423,1751878322171,-460.0,0.00021252,2]
[370095424,1751878322180,-1436.76,0.00021252,2]
[370095425,1751878322190,-460.0,0.00021252,2]
[370095426,1751878322200,-744.3,0.00021252,2]
[370095427,1751878322211,-190.6115,0.00021253,2]
[370095428,1751878322220,-190.6115,0.00021253,2]
[370095429,1751878322229,-463.884223,0.00021253,2]
[370095430,1751878322240,-463.884223,0.00021253,2]
[370095431,1751878322250,-309.444679,0.00021253,2]
[370095432,1751878322259,-309.444679,0.00021253,2]
[370095433,1751878322268,-381.90635739,0.00021253,2]
[370095434,1751878322278,-1626.87,0.00021253,2]
[370095435,1751878322288,-1041.83,0.00021253,2]
[370095436,1751878322297,-460.0,0.00021253,2]
[370095437,1751878322307,-1219.94,0.00021253,2]
[370095438,1751878322317,-11783.72,0.00021253,2]
[370095439,1751878322327,-516.28,0.00021253,2]
[370095440,1751878322336,-1126.4,0.00021253,2]
[370095441,1751878322346,-3083.89,0.00021253,2]
[370095442,1751878322355,-746.91,0.00021253,2]
[370095443,1751878322365,-460.0,0.00021253,2]
[370095444,1751878322374,-1051.67,0.00021253,2]
[370095445,1751878322382,-467.28,0.00021352,2]
[370095446,1751878322391,-639.905489,0.00021352,2]
[370095447,1751878322401,-639.905489,0.00021352,2]
[370095448,1751878322411,-1466.61,0.00021352,2]
[370095449,1751878322421,-1693.65,0.00021352,2]
[370095450,1751878322431,-511.73,0.00021352,2]
[370095451,1751878322441,-5131.36,0.00021352,2]
[370095452,1751878322451,-927.78,0.00021352,2]
[370095453,1751878322462,-2375.1,0.00021352,2]
[370095454,1751878322472,-4148.36,0.00021352,2]
[370095455,1751878322482,-460.0,0.00021352,2]
[370095456,1751878322492,-1006.41,0.00021352,2]
[370095457,1751878322502,-584.495755,0.00021352,2]
[370095458,1751878322512,-584.495755,0.00021352,2]
[370095459,1751878322522,-9521.95,0.00021352,2]
[370095460,1751878322532,-264.124102,0.00021352,2]
[370095461,1751878322542,-264.124102,0.00021352,2]
[370095462,1751878322551,-902.138538,0.00021352,2]
[370095463,1751878322561,-902.138538,0.00021352,2]
[370095464,1751878322571,-2677.89,0.00021352,2]
[370095465,1751878322580,-927.92,0.00021352,2]
[370095466,1751878322590,-460.0,0.00021353,2]
[370095467,1751878322599,-460.0,0.00021353,2]
[370095468,1751878322609,-652.73,0.00021353,2]
[370095469,1751878322618,-460.0,0.00021353,2]
[370095470,1751878322628,-460.0,0.00021353,2]
[370095471,1751878322830,-460.0,0.00021353,2]
[370095472,1751878322840,-590.05,0.00021353,2]
[370095473,1751878322853,-642.41,0.00021353,2]
[370095474,1751878322863,-460.0,0.00021353,2]
[370095475,1751878322874,-1814.25,0.00021353,2]
[370095476,1751878322883,-780.98,0.00021353,2]
[370095477,1751878322892,-460.0,0.00021353,2]
[370095478,1751878322902,-739.46,0.00021353,2]
[370095479,1751878322911,-1473.58,0.00021353,2]
[370095480,1751878322922,-460.0,0.00021353,2]
[370095481,1751878322931,-537.97,0.00021353,2]
[370095482,1751878322941,-474.52,0.00021353,2]
[370095483,1751878322951,-513.09971607,0.00021353,2]